[Event "Open NK Rapid 2025"]
[Site "Helmond, Netherlands"]
[Date "2025.05.03"]
[Round "5.7"]
[White "Sydykov, Bayastan"]
[Black "Kurt, Sascha"]
[Result "1-0"]
[TimeControl "15+5"]
[WhiteFideId "13829610"]
[BlackFideId "1082647"]
[WhiteElo "2297"]
[BlackElo "1953"]

1. e4 {[%clk 00:15:08]} {[%emt 00:00:01]} c5 {[%clk 00:15:09]} {[%emt
00:00:01]} 2. Nf3 {[%clk 00:15:12]} {[%emt 00:00:01]} d6 {[%clk 00:15:13]} 3.
Bb5+ {[%clk 00:15:13]} {[%emt 00:00:04]} Nd7 {[%clk 00:15:18]} {[%emt
00:00:01]} 4. Ba4 {[%clk 00:15:17]} {[%emt 00:00:02]} Ngf6 {[%clk 00:15:19]}
{[%emt 00:00:03]} 5. O-O {[%clk 00:15:20]} {[%emt 00:00:02]} e6 {[%clk
00:15:19]} {[%emt 00:00:04]} 6. Re1 {[%clk 00:15:18]} {[%emt 00:00:07]} a6
{[%clk 00:15:23]} {[%emt 00:00:01]} 7. c4 {[%clk 00:15:16]} {[%emt 00:00:07]}
Be7 {[%clk 00:15:26]} {[%emt 00:00:01]} 8. Nc3 {[%clk 00:15:16]} {[%emt
00:00:06]} O-O {[%clk 00:15:28]} {[%emt 00:00:03]} 9. Bc2 {[%clk 00:14:48]}
{[%emt 00:00:34]} Ne5 {[%clk 00:15:18]} {[%emt 00:00:15]} 10. Nxe5 {[%clk
00:14:50]} {[%emt 00:00:03]} dxe5 {[%clk 00:15:21]} {[%emt 00:00:01]} 11. d3
{[%clk 00:14:53]} {[%emt 00:00:03]} Bd7 {[%clk 00:15:08]} {[%emt 00:00:18]} 12.
Be3 {[%clk 00:14:32]} {[%emt 00:00:25]} Qc7 {[%clk 00:15:08]} {[%emt 00:00:05]}
13. a3 {[%clk 00:14:00]} {[%emt 00:00:38]} Rfd8 {[%clk 00:14:21]} {[%emt
00:00:52]} 14. Qe2 {[%clk 00:13:03]} {[%emt 00:01:02]} Ne8 {[%clk 00:13:50]}
{[%emt 00:00:36]} 15. Rab1 {[%clk 00:12:38]} {[%emt 00:00:29]} b5 {[%clk
00:13:04]} {[%emt 00:00:51]} 16. Rec1 {[%clk 00:11:55]} {[%emt 00:00:49]} Qb7
{[%clk 00:12:54]} {[%emt 00:00:15]} 17. b3 {[%clk 00:11:14]} {[%emt 00:00:46]}
Nc7 {[%clk 00:12:33]} {[%emt 00:00:25]} 18. f4 {[%clk 00:09:43]} {[%emt
00:01:36]} exf4 {[%clk 00:12:25]} {[%emt 00:00:13]} 19. Bxf4 {[%clk 00:09:47]}
{[%emt 00:00:01]} Ne8 {[%clk 00:11:48]} {[%emt 00:00:43]} 20. Rf1 {[%clk
00:09:19]} {[%emt 00:00:33]} Bc6 {[%clk 00:11:25]} {[%emt 00:00:27]} 21. Be3
{[%clk 00:08:59]} {[%emt 00:00:25]} b4 {[%clk 00:11:09]} {[%emt 00:00:22]} 22.
axb4 {[%clk 00:09:00]} {[%emt 00:00:04]} cxb4 {[%clk 00:10:44]} {[%emt
00:00:30]} 23. Nd1 {[%clk 00:09:01]} {[%emt 00:00:04]} Bf6 {[%clk 00:10:43]}
{[%emt 00:00:05]} 24. Qf2 {[%clk 00:08:10]} {[%emt 00:00:57]} a5 {[%clk
00:10:44]} {[%emt 00:00:04]} 25. Nb2 {[%clk 00:07:42]} {[%emt 00:00:33]} e5
{[%clk 00:09:57]} {[%emt 00:00:53]} 26. Ra1 {[%clk 00:07:36]} {[%emt 00:00:10]}
Nc7 {[%clk 00:09:49]} {[%emt 00:00:12]} 27. Na4 {[%clk 00:06:54]} {[%emt
00:00:47]} Bxa4 {[%clk 00:09:22]} {[%emt 00:00:33]} 28. Rxa4 {[%clk 00:06:58]}
Ra6 {[%clk 00:09:08]} {[%emt 00:00:19]} 29. Rfa1 {[%clk 00:05:53]} {[%emt
00:01:10]} Rda8 {[%clk 00:08:49]} {[%emt 00:00:24]} 30. Bd1 {[%clk 00:05:56]}
{[%emt 00:00:01]} Bd8 {[%clk 00:08:43]} {[%emt 00:00:12]} 31. Bg4 {[%clk
00:05:41]} {[%emt 00:00:20]} Ne8 {[%clk 00:08:43]} {[%emt 00:00:05]} 32. Bf3
{[%clk 00:05:37]} {[%emt 00:00:09]} Bb6 {[%clk 00:08:02]} {[%emt 00:00:46]} 33.
Bxb6 {[%clk 00:05:24]} {[%emt 00:00:18]} Rxb6 {[%clk 00:07:42]} {[%emt
00:00:25]} 34. d4 {[%clk 00:05:27]} {[%emt 00:00:02]} Rba6 {[%clk 00:07:05]}
{[%emt 00:00:41]} 35. d5 {[%clk 00:05:13]} {[%emt 00:00:20]} Qc7 {[%clk
00:07:00]} {[%emt 00:00:09]} 36. c5 {[%clk 00:05:15]} {[%emt 00:00:04]} Rc8
{[%clk 00:06:52]} {[%emt 00:00:13]} 37. d6 {[%clk 00:03:35]} {[%emt 00:01:45]}
Qd8 {[%clk 00:06:38]} {[%emt 00:00:19]} 38. Bg4 {[%clk 00:02:45]} {[%emt
00:00:55]} Rca8 {[%clk 00:06:25]} {[%emt 00:00:18]} 39. Be2 {[%clk 00:02:34]}
{[%emt 00:00:16]} R6a7 {[%clk 00:06:21]} {[%emt 00:00:09]} 40. Qf5 {[%clk
00:00:35]} {[%emt 00:02:04]} Qf6 {[%clk 00:04:24]} {[%emt 00:02:01]} 41. d7
{[%clk 00:00:10]} {[%emt 00:00:30]} Nc7 {[%clk 00:04:16]} {[%emt 00:00:14]} 42.
Qxf6 {[%clk 00:00:14]} {[%emt 00:00:02]} gxf6 {[%clk 00:04:20]} {[%emt
00:00:01]} 43. Rxa5 {[%clk 00:00:18]} Rxa5 {[%clk 00:04:03]} {[%emt 00:00:21]}
44. Rxa5 {[%clk 00:00:21]} {[%emt 00:00:01]} Rd8 {[%clk 00:04:08]} 45. c6
{[%clk 00:00:22]} {[%emt 00:00:04]} Ne6 {[%clk 00:04:05]} {[%emt 00:00:09]} 46.
Bc4 {[%clk 00:00:09]} {[%emt 00:00:18]} Nc7 {[%clk 00:03:36]} {[%emt 00:00:33]}
47. Ra7 {[%clk 00:00:13]} {[%emt 00:00:02]} 1-0

[Event "Open NK Rapid 2025"]
[Site "Helmond, Netherlands"]
[Date "2025.05.03"]
[Round "5.8"]
[White "Grochal, Joey"]
[Black "Madularea, David"]
[Result "0-1"]
[TimeControl "15+5"]
[WhiteFideId "1019945"]
[BlackFideId "1070215"]
[WhiteElo "2261"]
[BlackElo "1921"]

1. d4 {[%clk 00:15:09]} Nf6 {[%clk 00:15:09]} {[%emt 00:00:02]} 2. c4 {[%clk
00:15:13]} {[%emt 00:00:01]} b6 {[%clk 00:15:13]} {[%emt 00:00:01]} 3. Nc3
{[%clk 00:15:12]} {[%emt 00:00:06]} Bb7 {[%clk 00:15:17]} {[%emt 00:00:01]} 4.
f3 {[%clk 00:15:16]} {[%emt 00:00:01]} d5 {[%clk 00:15:20]} {[%emt 00:00:03]} 5.
cxd5 {[%clk 00:15:19]} {[%emt 00:00:01]} Nxd5 {[%clk 00:15:24]} {[%emt
00:00:01]} 6. e4 {[%clk 00:15:16]} {[%emt 00:00:08]} Nxc3 {[%clk 00:15:28]}
{[%emt 00:00:01]} 7. bxc3 {[%clk 00:15:19]} {[%emt 00:00:02]} e6 {[%clk
00:15:30]} {[%emt 00:00:03]} 8. Be3 {[%clk 00:15:07]} {[%emt 00:00:17]} c5
{[%clk 00:15:06]} {[%emt 00:00:29]} 9. Bb5+ {[%clk 00:15:03]} {[%emt 00:00:09]}
Nd7 {[%clk 00:14:57]} {[%emt 00:00:14]} 10. dxc5 {[%clk 00:14:04]} {[%emt
00:01:03]} bxc5 {[%clk 00:14:44]} {[%emt 00:00:19]} 11. Qb3 {[%clk 00:13:36]}
{[%emt 00:00:33]} Rc8 {[%clk 00:13:57]} {[%emt 00:00:52]} 12. Qa4 {[%clk
00:12:54]} {[%emt 00:00:48]} a6 {[%clk 00:13:04]} {[%emt 00:00:58]} 13. Be2
{[%clk 00:12:33]} {[%emt 00:00:25]} Bd6 {[%clk 00:12:11]} {[%emt 00:00:57]} 14.
Rd1 {[%clk 00:12:13]} {[%emt 00:00:26]} Be5 {[%clk 00:12:12]} {[%emt 00:00:04]}
15. Qa3 {[%clk 00:11:17]} {[%emt 00:01:00]} Qc7 {[%clk 00:10:43]} {[%emt
00:01:34]} 16. g3 {[%clk 00:10:21]} {[%emt 00:01:01]} h5 {[%clk 00:10:42]}
{[%emt 00:00:06]} 17. f4 {[%clk 00:09:20]} {[%emt 00:01:07]} Bxe4 {[%clk
00:10:23]} {[%emt 00:00:24]} 18. Nf3 {[%clk 00:09:21]} {[%emt 00:00:03]} Bf6
{[%clk 00:10:19]} {[%emt 00:00:09]} 19. O-O {[%clk 00:08:49]} {[%emt 00:00:37]}
Bf5 {[%clk 00:08:44]} {[%emt 00:01:40]} 20. Qa4 {[%clk 00:07:34]} {[%emt
00:01:21]} Ke7 {[%clk 00:07:28]} {[%emt 00:01:21]} 21. Bxa6 {[%clk 00:06:49]}
{[%emt 00:00:50]} Ra8 {[%clk 00:06:54]} {[%emt 00:00:39]} 22. Rxd7+ {[%clk
00:06:40]} {[%emt 00:00:14]} Qxd7 {[%clk 00:06:58]} {[%emt 00:00:02]} 23. Bxc5+
{[%clk 00:06:43]} {[%emt 00:00:01]} Ke8 {[%clk 00:06:37]} {[%emt 00:00:26]} 24.
Qc4 {[%clk 00:06:16]} {[%emt 00:00:32]} Be4 {[%clk 00:06:22]} {[%emt 00:00:20]}
25. Qxe4 {[%clk 00:04:37]} {[%emt 00:01:44]} Rxa6 {[%clk 00:06:26]} 26. Rb1
{[%clk 00:04:41]} {[%emt 00:00:01]} Rc6 {[%clk 00:05:08]} {[%emt 00:01:23]} 27.
Ne5 {[%clk 00:04:02]} {[%emt 00:00:43]} Bxe5 {[%clk 00:04:58]} {[%emt
00:00:15]} 28. Qxe5 {[%clk 00:04:05]} {[%emt 00:00:02]} f6 {[%clk 00:04:30]}
{[%emt 00:00:34]} 29. Qe3 {[%clk 00:03:17]} {[%emt 00:00:53]} Kf7 {[%clk
00:04:09]} {[%emt 00:00:26]} 30. Bd4 {[%clk 00:03:21]} Ra8 {[%clk 00:03:46]}
{[%emt 00:00:28]} 31. Qe2 {[%clk 00:03:21]} {[%emt 00:00:04]} Qd5 {[%clk
00:03:44]} {[%emt 00:00:07]} 32. Rb2 {[%clk 00:02:07]} {[%emt 00:01:20]} Rca6
{[%clk 00:03:19]} {[%emt 00:00:30]} 33. Be3 {[%clk 00:01:29]} {[%emt 00:00:43]}
Rxa2 {[%clk 00:03:09]} {[%emt 00:00:15]} 34. c4 {[%clk 00:01:32]} {[%emt
00:00:02]} Rxb2 {[%clk 00:02:50]} {[%emt 00:00:24]} 35. Qxb2 {[%clk 00:01:35]}
{[%emt 00:00:03]} Qe4 {[%clk 00:02:43]} {[%emt 00:00:10]} 36. Kf2 {[%clk
00:01:32]} {[%emt 00:00:09]} Rd8 {[%clk 00:02:23]} {[%emt 00:00:24]} 37. Qe2
{[%clk 00:01:22]} {[%emt 00:00:16]} Kg6 {[%clk 00:01:59]} {[%emt 00:00:28]} 38.
Bb6 {[%clk 00:00:52]} {[%emt 00:00:35]} Qxe2+ {[%clk 00:01:47]} {[%emt
00:00:18]} 39. Kxe2 {[%clk 00:00:57]} Rc8 {[%clk 00:01:42]} {[%emt 00:00:10]}
40. Kd3 {[%clk 00:00:57]} {[%emt 00:00:04]} Kf5 {[%clk 00:01:44]} {[%emt
00:00:02]} 41. Bf2 {[%clk 00:00:38]} {[%emt 00:00:24]} h4 {[%clk 00:01:43]}
{[%emt 00:00:07]} 42. c5 {[%clk 00:00:35]} {[%emt 00:00:09]} hxg3 {[%clk
00:01:39]} {[%emt 00:00:09]} 43. hxg3 {[%clk 00:00:38]} {[%emt 00:00:02]} g5
{[%clk 00:01:25]} {[%emt 00:00:18]} 44. Be3 {[%clk 00:00:28]} {[%emt 00:00:15]}
gxf4 {[%clk 00:01:13]} {[%emt 00:00:17]} 45. gxf4 {[%clk 00:00:31]} {[%emt
00:00:02]} Rd8+ {[%clk 00:01:17]} {[%emt 00:00:02]} 46. Kc4 {[%clk 00:00:29]}
{[%emt 00:00:07]} Ke4 {[%clk 00:01:20]} {[%emt 00:00:02]} 47. Bc1 {[%clk
00:00:33]} Rc8 {[%clk 00:01:03]} {[%emt 00:00:22]} 48. Bd2 {[%clk 00:00:30]}
{[%emt 00:00:08]} e5 {[%clk 00:00:56]} {[%emt 00:00:12]} 49. fxe5 {[%clk
00:00:31]} {[%emt 00:00:04]} Kxe5 {[%clk 00:00:49]} {[%emt 00:00:12]} 50. Bc3+
{[%clk 00:00:19]} {[%emt 00:00:17]} Ke6 {[%clk 00:00:53]} {[%emt 00:00:01]} 51.
Bd2 {[%clk 00:00:18]} {[%emt 00:00:06]} Kf5 {[%clk 00:00:35]} {[%emt 00:00:23]}
52. Bc3 {[%clk 00:00:12]} {[%emt 00:00:12]} Ke6 {[%clk 00:00:35]} {[%emt
00:00:04]} 53. Bd2 {[%clk 00:00:15]} {[%emt 00:00:01]} Rd8 {[%clk 00:00:23]}
{[%emt 00:00:17]} 54. Be3 {[%clk 00:00:16]} {[%emt 00:00:05]} Ke5 {[%clk
00:00:21]} {[%emt 00:00:07]} 55. Bc1 {[%clk 00:00:09]} {[%emt 00:00:13]} f5
{[%clk 00:00:19]} {[%emt 00:00:06]} 56. Bb2+ {[%clk 00:00:12]} {[%emt
00:00:03]} Ke4 {[%clk 00:00:16]} {[%emt 00:00:08]} 57. c6 {[%clk 00:00:15]}
{[%emt 00:00:01]} f4 {[%clk 00:00:20]} {[%emt 00:00:01]} 58. Kc5 {[%clk
00:00:19]} {[%emt 00:00:01]} f3 {[%clk 00:00:21]} {[%emt 00:00:03]} 59. Bf6
{[%clk 00:00:17]} {[%emt 00:00:08]} Rd5+ {[%clk 00:00:19]} {[%emt 00:00:07]} 60.
Kb6 {[%clk 00:00:16]} {[%emt 00:00:06]} f2 {[%clk 00:00:17]} {[%emt 00:00:06]}
61. c7 {[%clk 00:00:20]} {[%emt 00:00:02]} f1=Q {[%clk 00:00:17]} {[%emt
00:00:06]} 62. c8=Q {[%clk 00:00:23]} {[%emt 00:00:01]} Rb5+ {[%clk 00:00:10]}
{[%emt 00:00:12]} 63. Ka7 {[%clk 00:00:19]} {[%emt 00:00:08]} Ra5+ {[%clk
00:00:09]} {[%emt 00:00:07]} 64. Kb7 {[%clk 00:00:16]} {[%emt 00:00:08]} Qb1+
{[%clk 00:00:07]} {[%emt 00:00:07]} 65. Kc6 {[%clk 00:00:09]} {[%emt 00:00:12]}
Rc5+ {[%clk 00:00:10]} {[%emt 00:00:02]} 0-1

[Event "Open NK Rapid 2025"]
[Site "Helmond, Netherlands"]
[Date "2025.05.03"]
[Round "5.9"]
[White "Chua, Ethan"]
[Black "Beeke, Bob"]
[Result "0-1"]
[TimeControl "15+5"]
[WhiteFideId "1089250"]
[BlackFideId "1011634"]
[WhiteElo "2069"]
[BlackElo "2217"]

1. e4 {[%clk 00:15:08]} {[%emt 00:00:01]} d5 {[%clk 00:15:09]} {[%emt
00:00:01]} 2. exd5 {[%clk 00:15:05]} {[%emt 00:00:08]} Qxd5 {[%clk 00:15:14]}
{[%emt 00:00:01]} 3. Nc3 {[%clk 00:15:07]} {[%emt 00:00:03]} Qa5 {[%clk
00:15:18]} 4. d4 {[%clk 00:15:10]} {[%emt 00:00:02]} Nf6 {[%clk 00:15:21]}
{[%emt 00:00:01]} 5. Bc4 {[%clk 00:15:13]} {[%emt 00:00:03]} c6 {[%clk
00:15:24]} {[%emt 00:00:02]} 6. Nf3 {[%clk 00:15:13]} {[%emt 00:00:04]} Bf5
{[%clk 00:15:28]} {[%emt 00:00:01]} 7. O-O {[%clk 00:15:14]} {[%emt 00:00:04]}
e6 {[%clk 00:15:32]} {[%emt 00:00:01]} 8. Bf4 {[%clk 00:14:58]} {[%emt
00:00:20]} Be7 {[%clk 00:15:02]} {[%emt 00:00:35]} 9. Re1 {[%clk 00:14:40]}
{[%emt 00:00:24]} O-O {[%clk 00:15:04]} {[%emt 00:00:03]} 10. a3 {[%clk
00:14:40]} {[%emt 00:00:05]} Nbd7 {[%clk 00:14:39]} {[%emt 00:00:30]} 11. Qe2
{[%clk 00:14:37]} {[%emt 00:00:08]} Qd8 {[%clk 00:13:57]} {[%emt 00:00:47]} 12.
h3 {[%clk 00:14:36]} {[%emt 00:00:05]} Nb6 {[%clk 00:13:57]} {[%emt 00:00:05]}
13. Bd3 {[%clk 00:14:12]} {[%emt 00:00:29]} Bg6 {[%clk 00:13:39]} {[%emt
00:00:24]} 14. Bxg6 {[%clk 00:14:14]} {[%emt 00:00:03]} hxg6 {[%clk 00:13:42]}
{[%emt 00:00:01]} 15. Rad1 {[%clk 00:14:16]} {[%emt 00:00:03]} Bd6 {[%clk
00:13:36]} {[%emt 00:00:12]} 16. Bg5 {[%clk 00:14:10]} {[%emt 00:00:11]} Qc7
{[%clk 00:13:34]} {[%emt 00:00:06]} 17. Ne4 {[%clk 00:13:49]} {[%emt 00:00:26]}
Be7 {[%clk 00:11:59]} {[%emt 00:01:41]} 18. Nxf6+ {[%clk 00:13:48]} {[%emt
00:00:07]} Bxf6 {[%clk 00:11:51]} {[%emt 00:00:13]} 19. Bxf6 {[%clk 00:13:48]}
{[%emt 00:00:04]} gxf6 {[%clk 00:11:55]} {[%emt 00:00:01]} 20. c4 {[%clk
00:13:22]} {[%emt 00:00:31]} Rad8 {[%clk 00:11:34]} {[%emt 00:00:26]} 21. b4
{[%clk 00:12:58]} {[%emt 00:00:29]} Kg7 {[%clk 00:11:30]} {[%emt 00:00:09]} 22.
g3 {[%clk 00:12:55]} {[%emt 00:00:07]} Rh8 {[%clk 00:11:28]} {[%emt 00:00:08]}
23. Kg2 {[%clk 00:12:59]} {[%emt 00:00:02]} Rh5 {[%clk 00:11:10]} {[%emt
00:00:22]} 24. h4 {[%clk 00:12:08]} {[%emt 00:00:55]} Rhh8 {[%clk 00:10:17]}
{[%emt 00:00:59]} 25. Qc2 {[%clk 00:11:59]} {[%emt 00:00:14]} Nc8 {[%clk
00:10:01]} {[%emt 00:00:21]} 26. a4 {[%clk 00:11:50]} {[%emt 00:00:14]} Nd6
{[%clk 00:09:51]} {[%emt 00:00:16]} 27. a5 {[%clk 00:11:53]} {[%emt 00:00:02]}
Rd7 {[%emt 00:01:11]} 28. Re3 {[%clk 00:11:44]} Nf5 {[%clk 00:08:52]} {[%emt
00:00:10]} 29. Red3 {[%clk 00:11:46]} {[%emt 00:00:02]} Rhd8 {[%clk 00:08:41]}
{[%emt 00:00:18]} 30. Qc3 {[%clk 00:10:55]} {[%emt 00:00:57]} Ne7 {[%clk
00:08:15]} {[%emt 00:00:31]} 31. Nh2 {[%clk 00:10:34]} {[%emt 00:00:24]} b5
{[%clk 00:07:53]} {[%emt 00:00:27]} 32. axb6 {[%clk 00:10:30]} {[%emt
00:00:10]} axb6 {[%clk 00:07:50]} {[%emt 00:00:08]} 33. Ng4 {[%clk 00:10:32]}
{[%emt 00:00:03]} b5 {[%clk 00:07:26]} {[%emt 00:00:30]} 34. Qd2 {[%clk
00:09:13]} {[%emt 00:01:21]} Nf5 {[%clk 00:07:06]} {[%emt 00:00:27]} 35. c5
{[%clk 00:08:56]} {[%emt 00:00:23]} Rxd4 {[%clk 00:06:48]} {[%emt 00:00:22]} 36.
Rxd4 {[%clk 00:08:22]} {[%emt 00:00:39]} Rxd4 {[%clk 00:06:52]} {[%emt
00:00:01]} 37. Qe2 {[%clk 00:08:02]} {[%emt 00:00:25]} Qd8 {[%clk 00:06:49]}
{[%emt 00:00:08]} 38. Ra1 {[%clk 00:07:07]} {[%emt 00:00:58]} Qd5+ {[%clk
00:06:38]} {[%emt 00:00:18]} 39. Kh2 {[%clk 00:06:41]} {[%emt 00:00:31]} Rd2
{[%clk 00:06:20]} {[%emt 00:00:23]} 40. Qe1 {[%clk 00:06:14]} {[%emt 00:00:31]}
Nd4 {[%clk 00:06:00]} {[%emt 00:00:26]} 41. Qe3 {[%clk 00:06:02]} {[%emt
00:00:15]} Nf5 {[%clk 00:05:40]} {[%emt 00:00:27]} 42. Qa3 {[%clk 00:05:10]}
{[%emt 00:00:57]} Qd4 {[%clk 00:05:15]} {[%emt 00:00:30]} 43. Kh3 {[%clk
00:05:13]} {[%emt 00:00:02]} Rd3 {[%clk 00:04:27]} {[%emt 00:00:53]} 44. Qa8
{[%clk 00:03:20]} {[%emt 00:01:59]} Qf4 {[%clk 00:03:05]} {[%emt 00:01:26]} 45.
Rg1 {[%clk 00:03:11]} {[%emt 00:00:13]} Qf3 {[%clk 00:02:51]} {[%emt 00:00:19]}
46. Qa1 {[%clk 00:01:30]} {[%emt 00:01:47]} Rd4 {[%clk 00:02:46]} {[%emt
00:00:10]} 0-1

[Event "Open NK Rapid 2025"]
[Site "Helmond, Netherlands"]
[Date "2025.05.03"]
[Round "5.10"]
[White "Grooten, Tommy"]
[Black "Smeets, Kobe"]
[Result "1-0"]
[TimeControl "15+5"]
[WhiteFideId "1068806"]
[BlackFideId "1063910"]
[WhiteElo "2027"]
[BlackElo "2192"]

1. d4 {[%clk 00:15:09]} d5 {[%clk 00:15:08]} {[%emt 00:00:02]} 2. c4 {[%clk
00:15:13]} {[%emt 00:00:01]} e6 {[%clk 00:15:07]} {[%emt 00:00:06]} 3. Nc3
{[%clk 00:15:17]} {[%emt 00:00:02]} c6 {[%clk 00:15:11]} {[%emt 00:00:01]} 4.
Nf3 {[%clk 00:15:03]} {[%emt 00:00:19]} dxc4 {[%clk 00:15:14]} {[%emt
00:00:02]} 5. a4 {[%clk 00:15:07]} Bb4 {[%clk 00:15:18]} {[%emt 00:00:02]} 6.
e3 {[%clk 00:15:04]} {[%emt 00:00:09]} b5 {[%clk 00:15:21]} {[%emt 00:00:01]} 7.
Be2 {[%clk 00:14:59]} {[%emt 00:00:10]} Bb7 {[%clk 00:15:10]} {[%emt 00:00:16]}
8. O-O {[%clk 00:15:01]} {[%emt 00:00:02]} a6 {[%clk 00:15:12]} {[%emt
00:00:03]} 9. e4 {[%clk 00:14:36]} {[%emt 00:00:31]} Nd7 {[%clk 00:14:57]}
{[%emt 00:00:19]} 10. e5 {[%clk 00:14:08]} {[%emt 00:00:34]} Ne7 {[%clk
00:14:29]} {[%emt 00:00:32]} 11. Ne4 {[%clk 00:13:49]} {[%emt 00:00:25]} Nd5
{[%clk 00:13:57]} {[%emt 00:00:37]} 12. Bd2 {[%clk 00:12:23]} {[%emt 00:01:31]}
Be7 {[%clk 00:14:00]} {[%emt 00:00:02]} 13. Nfg5 {[%clk 00:11:09]} {[%emt
00:01:19]} Qb6 {[%clk 00:13:16]} {[%emt 00:00:49]} 14. Bg4 {[%clk 00:08:36]}
{[%emt 00:02:38]} Qxd4 {[%clk 00:12:17]} {[%emt 00:01:05]} 15. Nxf7 {[%clk
00:07:50]} {[%emt 00:00:51]} Kxf7 {[%clk 00:11:20]} {[%emt 00:01:01]} 16. Bxe6+
{[%clk 00:07:50]} {[%emt 00:00:05]} Ke8 {[%clk 00:09:40]} {[%emt 00:01:45]} 17.
Qg4 {[%clk 00:07:41]} {[%emt 00:00:14]} Nc5 {[%clk 00:05:22]} {[%emt 00:04:23]}
18. Nd6+ {[%clk 00:07:07]} {[%emt 00:00:39]} Bxd6 {[%clk 00:05:25]} {[%emt
00:00:02]} 19. Qxd4 {[%clk 00:07:11]} {[%emt 00:00:01]} Nxe6 {[%clk 00:05:28]}
{[%emt 00:00:02]} 20. Qg4 {[%clk 00:07:11]} {[%emt 00:00:04]} Be7 {[%clk
00:04:23]} {[%emt 00:01:11]} 21. Qxe6 {[%clk 00:07:05]} {[%emt 00:00:11]} Rd8
{[%clk 00:04:26]} {[%emt 00:00:01]} 22. Bg5 {[%clk 00:06:40]} {[%emt 00:00:31]}
Rd7 {[%clk 00:04:14]} {[%emt 00:00:17]} 23. Bxe7 {[%clk 00:06:07]} {[%emt
00:00:37]} Rxe7 {[%clk 00:04:15]} {[%emt 00:00:04]} 24. Qd6 {[%clk 00:06:06]}
{[%emt 00:00:06]} Rf8 {[%clk 00:04:14]} {[%emt 00:00:07]} 25. e6 {[%clk
00:05:58]} {[%emt 00:00:13]} Nc7 {[%clk 00:04:06]} {[%emt 00:00:13]} 26. f4
{[%clk 00:04:26]} {[%emt 00:01:37]} Rf5 {[%clk 00:03:51]} {[%emt 00:00:20]} 27.
Rad1 {[%clk 00:03:09]} {[%emt 00:01:22]} Nxe6 {[%clk 00:03:24]} {[%emt
00:00:32]} 28. Rfe1 {[%clk 00:03:04]} {[%emt 00:00:10]} Kf7 {[%clk 00:03:28]}
29. Rxe6 {[%clk 00:02:54]} {[%emt 00:00:14]} Rxe6 {[%clk 00:03:26]} {[%emt
00:00:08]} 30. Qd7+ {[%clk 00:02:59]} {[%emt 00:00:01]} Kf6 {[%clk 00:03:21]}
{[%emt 00:00:10]} 31. Qxb7 {[%clk 00:03:01]} {[%emt 00:00:02]} Rxf4 {[%clk
00:03:16]} {[%emt 00:00:09]} 32. Qc7 {[%clk 00:02:59]} {[%emt 00:00:08]} Rf5
{[%clk 00:02:56]} {[%emt 00:00:25]} 33. a5 {[%clk 00:02:41]} {[%emt 00:00:23]}
b4 {[%clk 00:01:50]} {[%emt 00:01:11]} 34. Qc8 {[%clk 00:02:23]} {[%emt
00:00:23]} c3 {[%clk 00:01:42]} {[%emt 00:00:13]} 35. bxc3 {[%clk 00:02:03]}
{[%emt 00:00:25]} bxc3 {[%clk 00:01:47]} 36. Qxa6 {[%clk 00:02:00]} {[%emt
00:00:08]} c2 {[%clk 00:01:33]} {[%emt 00:00:19]} 37. Rc1 {[%clk 00:02:04]} Rd6
{[%clk 00:01:38]} {[%emt 00:00:01]} 38. Qe2 {[%clk 00:01:54]} {[%emt 00:00:15]}
Rxa5 {[%clk 00:00:59]} {[%emt 00:00:44]} 39. Qxc2 {[%clk 00:01:57]} Rf5 {[%clk
00:00:44]} {[%emt 00:00:20]} 40. Qc3+ {[%clk 00:01:55]} {[%emt 00:00:07]} Kg6
{[%clk 00:00:45]} {[%emt 00:00:04]} 41. Qg3+ {[%clk 00:01:59]} {[%emt
00:00:01]} 1-0